[Event "Titled Tuesday Blitz February 28 Late 2023"]
[White "Melikyan, Gnel"]
[Black "Matlakov, Maxim"]
[WhiteFideId "54109990"]
[BlackFideId "4168003"]
[WhiteElo "2138"]
[BlackElo "2666"]
[Result "0-1"]
[Round "02"]
[TimeControl "180+2"]
[Date "2023.02.28"]
[WhiteClock "0:00:18"]
[BlackClock "0:01:36"]

1. e4 {[%clk 0:02:59]}  e5 {[%clk 0:02:59]} 2. Nf3 {[%clk 0:02:58]}  Nc6 {[%clk 0:02:59]} 3. d4 {[%clk 0:02:59]}  exd4 {[%clk 0:02:59]} 4. Nxd4 {[%clk 0:02:59]}  Nf6 {[%clk 0:02:59]} 5. Nxc6 {[%clk 0:02:59]}  bxc6 {[%clk 0:03:00]} 6. e5 {[%clk 0:02:59]}  Qe7 {[%clk 0:03:00]} 7. Qe2 {[%clk 0:03:00]}  Nd5 {[%clk 0:03:01]} 8. c4 {[%clk 0:03:00]}  Ba6 {[%clk 0:03:01]} 9. b3 {[%clk 0:03:00]}  g6 {[%clk 0:02:54]} 10. g3 {[%clk 0:03:00]}  Bg7 {[%clk 0:02:51]} 11. Bb2 {[%clk 0:03:00]}  O-O-O {[%clk 0:02:50]} 12. Bg2 {[%clk 0:02:59]}  Rhe8 {[%clk 0:02:42]} 13. O-O {[%clk 0:02:58]}  Bxe5 {[%clk 0:02:39]} 14. Qxe5 {[%clk 0:02:58]}  Qxe5 {[%clk 0:02:40]} 15. Bxe5 {[%clk 0:02:58]}  Rxe5 {[%clk 0:02:41]} 16. cxd5 {[%clk 0:02:58]}  Bxf1 {[%clk 0:02:40]} 17. Kxf1 {[%clk 0:02:57]}  cxd5 {[%clk 0:02:41]} 18. f4 {[%clk 0:02:29]}  Re3 {[%clk 0:02:39]} 19. Bxd5 {[%clk 0:02:29]}  Rd3 {[%clk 0:02:39]} 20. Bf3 {[%clk 0:02:29]}  Re8 {[%clk 0:02:37]} 21. Kf2 {[%clk 0:02:27]}  Re6 {[%clk 0:02:07]} 22. Be2 {[%clk 0:02:03]}  Rd4 {[%clk 0:02:07]} 23. Nc3 {[%clk 0:01:54]}  Rd2 {[%clk 0:02:07]} 24. Kf1 {[%clk 0:01:06]}  Rc2 {[%clk 0:02:04]} 25. Bc4 {[%clk 0:00:59]}  Rxc3 {[%clk 0:02:01]} 26. Bxe6 {[%clk 0:00:59]}  fxe6 {[%clk 0:02:02]} 27. Kg2 {[%clk 0:00:49]}  Rc2+ {[%clk 0:02:02]} 28. Kh3 {[%clk 0:00:48]}  d5 {[%clk 0:02:02]} 29. a3 {[%clk 0:00:46]}  c5 {[%clk 0:02:02]} 30. Kg4 {[%clk 0:00:44]}  h6 {[%clk 0:01:54]} 31. h4 {[%clk 0:00:43]}  Rc3 {[%clk 0:01:54]} 32. b4 {[%clk 0:00:42]}  c4 {[%clk 0:01:54]} 33. a4 {[%clk 0:00:40]}  d4 {[%clk 0:01:54]} 34. Rd1 {[%clk 0:00:35]}  d3 {[%clk 0:01:54]} 35. Kf3 {[%clk 0:00:36]}  Kd7 {[%clk 0:01:43]} 36. Ke4 {[%clk 0:00:35]}  Rc2 {[%clk 0:01:36]} 37. Ke3 {[%clk 0:00:22]}  Kd6 {[%clk 0:01:35]} 38. a5 {[%clk 0:00:18]}  Kd5 {[%clk 0:01:36]} 0-1


[Site "https://www.chess.com"]

[Event "Titled Tuesday Blitz February 28 Late 2023"]
[White "Kvaloy, Aksel Bu"]
[Black "Bluebaum, Matthias"]
[WhiteFideId "1528815"]
[BlackFideId "24651516"]
[WhiteElo "2208"]
[BlackElo "2638"]
[Result "0-1"]
[Round "02"]
[TimeControl "180+2"]
[Date "2023.02.28"]
[WhiteClock "0:01:14"]
[BlackClock "0:02:15"]

1. d4 {[%clk 0:03:00]}  d5 {[%clk 0:03:00]} 2. c4 {[%clk 0:03:00]}  e6 {[%clk 0:03:00]} 3. Nf3 {[%clk 0:03:01]}  Nf6 {[%clk 0:03:01]} 4. g3 {[%clk 0:03:01]}  Nc6 {[%clk 0:03:01]} 5. Bg2 {[%clk 0:03:00]}  Bd6 {[%clk 0:03:02]} 6. O-O {[%clk 0:02:53]}  O-O {[%clk 0:03:02]} 7. c5 {[%clk 0:02:51]}  Be7 {[%clk 0:03:02]} 8. Qc2 {[%clk 0:02:51]}  Bd7 {[%clk 0:02:48]} 9. a3 {[%clk 0:02:46]}  a5 {[%clk 0:02:41]} 10. Nc3 {[%clk 0:02:16]}  b6 {[%clk 0:02:41]} 11. cxb6 {[%clk 0:02:16]}  cxb6 {[%clk 0:02:42]} 12. e4 {[%clk 0:02:16]}  dxe4 {[%clk 0:02:31]} 13. Nxe4 {[%clk 0:02:17]}  Rc8 {[%clk 0:02:32]} 14. Nxf6+ {[%clk 0:02:01]}  Bxf6 {[%clk 0:02:33]} 15. Qe4 {[%clk 0:02:02]}  Ne7 {[%clk 0:02:30]} 16. Bg5 {[%clk 0:01:20]}  Bc6 {[%clk 0:02:28]} 17. Qd3 {[%clk 0:01:14]}  Bxf3 {[%clk 0:02:19]} 18. Bxf6 {[%clk 0:01:14]}  Bxg2 {[%clk 0:02:19]} 19. Bxe7 {[%clk 0:01:14]}  Bxf1 {[%clk 0:02:15]} 0-1


[Site "https://www.chess.com"]

[Event "Titled Tuesday Blitz February 28 Late 2023"]
[White "Sielecki, Christof"]
[Black "Yoo, Christopher Woojin"]
[WhiteFideId "4620437"]
[BlackFideId "30909694"]
[WhiteElo "2443"]
[BlackElo "2519"]
[Result "0-1"]
[Round "02"]
[TimeControl "180+2"]
[Date "2023.02.28"]
[WhiteClock "0:00:01"]
[BlackClock "0:00:03"]

1. e4 {[%clk 0:03:00]}  c5 {[%clk 0:02:49]} 2. Nf3 {[%clk 0:03:00]}  d6 {[%clk 0:02:49]} 3. Bb5+ {[%clk 0:03:00]}  Nd7 {[%clk 0:02:48]} 4. c3 {[%clk 0:03:00]}  Nf6 {[%clk 0:02:45]} 5. Qe2 {[%clk 0:03:00]}  e5 {[%clk 0:02:45]} 6. d4 {[%clk 0:02:57]}  a6 {[%clk 0:02:36]} 7. dxe5 {[%clk 0:02:45]}  dxe5 {[%clk 0:02:35]} 8. Bxd7+ {[%clk 0:02:44]}  Nxd7 {[%clk 0:02:32]} 9. O-O {[%clk 0:02:37]}  Be7 {[%clk 0:02:32]} 10. Rd1 {[%clk 0:02:36]}  Qc7 {[%clk 0:02:29]} 11. c4 {[%clk 0:02:35]}  Nb6 {[%clk 0:02:01]} 12. Nc3 {[%clk 0:02:34]}  O-O {[%clk 0:01:56]} 13. b3 {[%clk 0:02:27]}  Bg4 {[%clk 0:01:52]} 14. h3 {[%clk 0:02:26]}  Bh5 {[%clk 0:01:50]} 15. Nd5 {[%clk 0:01:59]}  Nxd5 {[%clk 0:01:48]} 16. Rxd5 {[%clk 0:02:00]}  f6 {[%clk 0:01:37]} 17. Be3 {[%clk 0:01:51]}  Bf7 {[%clk 0:01:36]} 18. Rd2 {[%clk 0:01:48]}  Qc6 {[%clk 0:01:35]} 19. Qd3 {[%clk 0:01:35]}  Rfd8 {[%clk 0:01:34]} 20. Qc2 {[%clk 0:01:35]}  Bg6 {[%clk 0:01:32]} 21. Rxd8+ {[%clk 0:01:35]}  Rxd8 {[%clk 0:01:32]} 22. Nd2 {[%clk 0:01:35]}  Qd7 {[%clk 0:01:28]} 23. f3 {[%clk 0:01:31]}  f5 {[%clk 0:01:19]} 24. exf5 {[%clk 0:01:32]}  Bxf5 {[%clk 0:01:18]} 25. Ne4 {[%clk 0:01:32]}  Qd3 {[%clk 0:01:19]} 26. Qxd3 {[%clk 0:01:30]}  Rxd3 {[%clk 0:01:20]} 27. Kf2 {[%clk 0:01:27]}  Bxe4 {[%clk 0:01:17]} 28. fxe4 {[%clk 0:01:27]}  b5 {[%clk 0:01:08]} 29. Ke2 {[%clk 0:01:06]}  bxc4 {[%clk 0:01:08]} 30. Rd1 {[%clk 0:00:49]}  Rc3 {[%clk 0:00:47]} 31. Rd5 {[%clk 0:00:29]}  Rc2+ {[%clk 0:00:20]} 32. Kf3 {[%clk 0:00:25]}  c3 {[%clk 0:00:19]} 33. Bxc5 {[%clk 0:00:19]}  Bf6 {[%clk 0:00:15]} 34. Bb4 {[%clk 0:00:12]}  Rc1 {[%clk 0:00:10]} 35. Rc5 {[%clk 0:00:10]}  c2 {[%clk 0:00:10]} 36. Bd2 {[%clk 0:00:06]}  Rf1+ {[%clk 0:00:07]} 37. Ke2 {[%clk 0:00:06]}  Rg1 {[%clk 0:00:06]} 38. Kf2 {[%clk 0:00:04]}  Rh1 {[%clk 0:00:06]} 39. Rxc2 {[%clk 0:00:03]}  Bh4+ {[%clk 0:00:07]} 40. Kf3 {[%clk 0:00:03]}  Rf1+ {[%clk 0:00:07]} 41. Ke2 {[%clk 0:00:03]}  Rf2+ {[%clk 0:00:07]} 42. Kd3 {[%clk 0:00:04]}  Rxg2 {[%clk 0:00:07]} 43. Be3 {[%clk 0:00:04]}  Rg3 {[%clk 0:00:07]} 44. Rc8+ {[%clk 0:00:04]}  Kf7 {[%clk 0:00:07]} 45. Rc7+ {[%clk 0:00:04]}  Kg6 {[%clk 0:00:06]} 46. Rc6+ {[%clk 0:00:05]}  Kh5 {[%clk 0:00:07]} 47. Ke2 {[%clk 0:00:05]}  Rxh3 {[%clk 0:00:07]} 48. Rc5 {[%clk 0:00:06]}  Kg4 {[%clk 0:00:05]} 49. Rxe5 {[%clk 0:00:06]}  Rh2+ {[%clk 0:00:06]} 50. Kd3 {[%clk 0:00:06]}  Rxa2 {[%clk 0:00:07]} 51. Rf5 {[%clk 0:00:06]}  g5 {[%clk 0:00:05]} 52. Rf7 {[%clk 0:00:05]}  h5 {[%clk 0:00:05]} 53. e5 {[%clk 0:00:06]}  Ra5 {[%clk 0:00:04]} 54. Ke4 {[%clk 0:00:06]}  Bg3 {[%clk 0:00:04]} 55. Bd4 {[%clk 0:00:05]}  Bxe5 {[%clk 0:00:02]} 56. Bxe5 {[%clk 0:00:05]}  Rb5 {[%clk 0:00:03]} 57. Rf1 {[%clk 0:00:03]}  Rb4+ {[%clk 0:00:03]} 58. Kd5 {[%clk 0:00:03]}  Rxb3 {[%clk 0:00:03]} 59. Rg1+ {[%clk 0:00:04]}  Kh4 {[%clk 0:00:03]} 60. Rh1+ {[%clk 0:00:04]}  Rh3 {[%clk 0:00:03]} 61. Rg1 {[%clk 0:00:03]}  Rf3 {[%clk 0:00:04]} 62. Rh1+ {[%clk 0:00:03]}  Kg4 {[%clk 0:00:04]} 63. Rg1+ {[%clk 0:00:03]}  Kf5 {[%clk 0:00:04]} 64. Bd4 {[%clk 0:00:04]}  h4 {[%clk 0:00:04]} 65. Bc5 {[%clk 0:00:03]}  g4 {[%clk 0:00:03]} 66. Be7 {[%clk 0:00:02]}  h3 {[%clk 0:00:03]} 67. Bd6 {[%clk 0:00:03]}  Rd3+ {[%clk 0:00:03]} 68. Kc5 {[%clk 0:00:03]}  a5 {[%clk 0:00:02]} 69. Rf1+ {[%clk 0:00:03]}  Ke6 {[%clk 0:00:02]} 70. Bf4 {[%clk 0:00:02]}  Rf3 {[%clk 0:00:03]} 71. Re1+ {[%clk 0:00:02]}  Kf5 {[%clk 0:00:04]} 72. Bd6 {[%clk 0:00:01]}  g3 {[%clk 0:00:04]} 73. Re5+ {[%clk 0:00:01]}  Kg4 {[%clk 0:00:03]} 74. Re4+ {[%clk 0:00:02]}  Kg5 {[%clk 0:00:04]} 75. Re5+ {[%clk 0:00:02]}  Kf6 {[%clk 0:00:03]} 76. Rh5 {[%clk 0:00:01]}  g2 {[%clk 0:00:03]} 0-1


[Site "https://www.chess.com"]

[Event "Titled Tuesday Blitz February 28 Late 2023"]
[White "Sarana, Alexey"]
[Black "Dobrikov, Marco"]
[WhiteFideId "24133795"]
[BlackFideId "12950378"]
[WhiteElo "2717"]
[BlackElo "2140"]
[Result "1-0"]
[Round "02"]
[TimeControl "180+2"]
[Date "2023.02.28"]
[WhiteClock "0:02:46"]
[BlackClock "0:02:09"]

1. c4 {[%clk 0:02:53]}  e6 {[%clk 0:02:57]} 2. Nc3 {[%clk 0:02:51]}  Nf6 {[%clk 0:02:57]} 3. d4 {[%clk 0:02:52]}  Bb4 {[%clk 0:02:57]} 4. e3 {[%clk 0:02:52]}  O-O {[%clk 0:02:57]} 5. Bd3 {[%clk 0:02:51]}  b6 {[%clk 0:02:56]} 6. e4 {[%clk 0:02:51]}  Bb7 {[%clk 0:02:54]} 7. Bg5 {[%clk 0:02:52]}  h6 {[%clk 0:02:35]} 8. h4 {[%clk 0:02:52]}  Be7 {[%clk 0:02:14]} 9. e5 {[%clk 0:02:45]}  Ne8 {[%clk 0:02:14]} 10. Qh5 {[%clk 0:02:45]}  Bxg5 {[%clk 0:02:07]} 11. hxg5 {[%clk 0:02:45]}  Qxg5 {[%clk 0:02:07]} 12. Qxg5 {[%clk 0:02:45]}  hxg5 {[%clk 0:02:08]} 13. Bh7+ {[%clk 0:02:45]}  Kh8 {[%clk 0:02:09]} 14. Be4+ {[%clk 0:02:46]} 1-0


[Site "https://www.chess.com"]

[Event "Titled Tuesday Blitz February 28 Late 2023"]
[White "Fiorito, Joaquin"]
[Black "Bortnyk, Mykola"]
[WhiteFideId "180173"]
[BlackFideId "14120836"]
[WhiteElo "2157"]
[BlackElo "2582"]
[Result "1-0"]
[Round "02"]
[TimeControl "180+2"]
[Date "2023.02.28"]
[WhiteClock "0:00:14"]
[BlackClock "0:00:57"]

1. d4 {[%clk 0:03:00]}  g6 {[%clk 0:02:56]} 2. e4 {[%clk 0:03:00]}  Bg7 {[%clk 0:02:57]} 3. Nc3 {[%clk 0:03:00]}  a6 {[%clk 0:02:57]} 4. f4 {[%clk 0:02:59]}  b5 {[%clk 0:02:56]} 5. Nf3 {[%clk 0:02:57]}  Bb7 {[%clk 0:02:56]} 6. Bd3 {[%clk 0:02:58]}  d6 {[%clk 0:02:56]} 7. O-O {[%clk 0:02:56]}  c5 {[%clk 0:02:54]} 8. dxc5 {[%clk 0:02:41]}  dxc5 {[%clk 0:02:55]} 9. e5 {[%clk 0:02:42]}  f5 {[%clk 0:02:52]} 10. Be3 {[%clk 0:02:32]}  c4 {[%clk 0:02:51]} 11. Be2 {[%clk 0:02:32]}  Nc6 {[%clk 0:02:33]} 12. Ng5 {[%clk 0:02:28]}  Qxd1 {[%clk 0:02:28]} 13. Raxd1 {[%clk 0:02:28]}  Nd8 {[%clk 0:02:28]} 14. a4 {[%clk 0:02:06]}  Bc6 {[%clk 0:02:23]} 15. Nd5 {[%clk 0:02:04]}  Bxd5 {[%clk 0:02:18]} 16. Rxd5 {[%clk 0:02:05]}  h6 {[%clk 0:02:13]} 17. Nf3 {[%clk 0:01:46]}  e6 {[%clk 0:02:14]} 18. Rdd1 {[%clk 0:01:40]}  Ne7 {[%clk 0:02:14]} 19. Nd4 {[%clk 0:01:35]}  Nd5 {[%clk 0:02:14]} 20. Bc1 {[%clk 0:01:33]}  Bf8 {[%clk 0:02:06]} 21. Nxe6 {[%clk 0:01:30]}  Nxe6 {[%clk 0:02:01]} 22. Rxd5 {[%clk 0:01:30]}  Bc5+ {[%clk 0:02:00]} 23. Kh1 {[%clk 0:01:30]}  Ke7 {[%clk 0:02:00]} 24. Bf3 {[%clk 0:01:29]}  Rad8 {[%clk 0:01:59]} 25. Rfd1 {[%clk 0:01:27]}  Nd4 {[%clk 0:01:50]} 26. Be3 {[%clk 0:00:57]}  Rxd5 {[%clk 0:01:33]} 27. Bxd5 {[%clk 0:00:58]}  Ne6 {[%clk 0:01:32]} 28. Bxc5+ {[%clk 0:00:49]}  Nxc5 {[%clk 0:01:33]} 29. axb5 {[%clk 0:00:49]}  axb5 {[%clk 0:01:34]} 30. g3 {[%clk 0:00:27]}  g5 {[%clk 0:01:34]} 31. Kg2 {[%clk 0:00:26]}  Rd8 {[%clk 0:01:30]} 32. Bf3 {[%clk 0:00:22]}  Ne6 {[%clk 0:01:29]} 33. Rxd8 {[%clk 0:00:22]}  Kxd8 {[%clk 0:01:30]} 34. Bd5 {[%clk 0:00:21]}  Nd4 {[%clk 0:01:24]} 35. c3 {[%clk 0:00:20]}  Nc2 {[%clk 0:01:21]} 36. Kf2 {[%clk 0:00:18]}  Ke7 {[%clk 0:01:19]} 37. Ke2 {[%clk 0:00:17]}  Kd7 {[%clk 0:01:13]} 38. Bf7 {[%clk 0:00:12]}  g4 {[%clk 0:01:09]} 39. Bg6 {[%clk 0:00:13]}  Ke6 {[%clk 0:01:09]} 40. Be8 {[%clk 0:00:13]}  b4 {[%clk 0:01:09]} 41. Bb5 {[%clk 0:00:13]}  bxc3 {[%clk 0:01:04]} 42. Bxc4+ {[%clk 0:00:12]}  Ke7 {[%clk 0:01:04]} 43. bxc3 {[%clk 0:00:13]}  Na3 {[%clk 0:01:01]} 44. Bd3 {[%clk 0:00:13]}  Ke6 {[%clk 0:01:02]} 45. Kd2 {[%clk 0:00:14]}  h5 {[%clk 0:01:02]} 46. Kc1 {[%clk 0:00:14]}  Kd5 {[%clk 0:01:01]} 47. Kb2 {[%clk 0:00:14]}  h4 {[%clk 0:00:57]} 48. Kxa3 {[%clk 0:00:13]}  hxg3 {[%clk 0:00:57]} 49. hxg3 {[%clk 0:00:14]} 1-0


[Site "https://www.chess.com"]

[Event "Titled Tuesday Blitz February 28 Late 2023"]
[White "Makarian, Rudik"]
[Black "Sebag, Marie"]
[WhiteFideId "44105681"]
[BlackFideId "617822"]
[WhiteElo "2419"]
[BlackElo "2440"]
[Result "1-0"]
[Round "02"]
[TimeControl "180+2"]
[Date "2023.02.28"]
[WhiteClock "0:00:16"]
[BlackClock "0:00:04"]

1. d4 {[%clk 0:03:00]}  d5 {[%clk 0:02:59]} 2. c4 {[%clk 0:03:00]}  e6 {[%clk 0:02:59]} 3. Nf3 {[%clk 0:03:00]}  a6 {[%clk 0:02:58]} 4. c5 {[%clk 0:02:59]}  b6 {[%clk 0:02:55]} 5. cxb6 {[%clk 0:03:00]}  cxb6 {[%clk 0:02:55]} 6. Nc3 {[%clk 0:03:00]}  Nc6 {[%clk 0:02:53]} 7. Bf4 {[%clk 0:03:00]}  Nf6 {[%clk 0:02:52]} 8. e3 {[%clk 0:03:01]}  Bd6 {[%clk 0:02:48]} 9. Bd3 {[%clk 0:03:01]}  O-O {[%clk 0:02:47]} 10. O-O {[%clk 0:03:00]}  Bb7 {[%clk 0:02:47]} 11. Rc1 {[%clk 0:02:59]}  Rc8 {[%clk 0:02:45]} 12. Qe2 {[%clk 0:02:56]}  b5 {[%clk 0:02:43]} 13. a3 {[%clk 0:02:42]}  h6 {[%clk 0:02:24]} 14. h3 {[%clk 0:02:37]}  Bxf4 {[%clk 0:02:21]} 15. exf4 {[%clk 0:02:38]}  Qb6 {[%clk 0:02:20]} 16. Qe3 {[%clk 0:02:28]}  Rfd8 {[%clk 0:02:19]} 17. Rfe1 {[%clk 0:01:59]}  Re8 {[%clk 0:02:12]} 18. g4 {[%clk 0:01:55]}  Ne7 {[%clk 0:02:06]} 19. Ne5 {[%clk 0:01:50]}  Red8 {[%clk 0:01:53]} 20. Rcd1 {[%clk 0:01:37]}  b4 {[%clk 0:01:46]} 21. Na4 {[%clk 0:01:35]}  Qa7 {[%clk 0:01:36]} 22. Nxf7 {[%clk 0:01:30]}  Re8 {[%clk 0:01:17]} 23. Qxe6 {[%clk 0:01:16]}  Ne4 {[%clk 0:00:39]} 24. Nd6+ {[%clk 0:01:04]}  Kh8 {[%clk 0:00:38]} 25. Nxe8 {[%clk 0:01:02]}  Rxe8 {[%clk 0:00:38]} 26. Nc5 {[%clk 0:00:57]}  Bc6 {[%clk 0:00:36]} 27. Nxe4 {[%clk 0:00:44]}  dxe4 {[%clk 0:00:33]} 28. Bxe4 {[%clk 0:00:44]}  Bd7 {[%clk 0:00:28]} 29. Qf7 {[%clk 0:00:44]}  bxa3 {[%clk 0:00:20]} 30. bxa3 {[%clk 0:00:43]}  Ba4 {[%clk 0:00:18]} 31. d5 {[%clk 0:00:30]}  Qd7 {[%clk 0:00:10]} 32. Bf5 {[%clk 0:00:21]}  Qd6 {[%clk 0:00:08]} 33. Re6 {[%clk 0:00:20]}  Qxf4 {[%clk 0:00:04]} 34. Rde1 {[%clk 0:00:16]} 1-0


[Site "https://www.chess.com"]

[Event "Titled Tuesday Blitz February 28 Late 2023"]
[White "Risteski, Emil"]
[Black "Kamsky, Gata"]
[WhiteFideId "15005267"]
[BlackFideId "2000024"]
[WhiteElo "2251"]
[BlackElo "2666"]
[Result "0-1"]
[Round "02"]
[TimeControl "180+2"]
[Date "2023.02.28"]
[WhiteClock "0:02:14"]
[BlackClock "0:01:43"]

1. Nf3 {[%clk 0:02:53]}  Nf6 {[%clk 0:02:58]} 2. g3 {[%clk 0:02:53]}  g6 {[%clk 0:02:55]} 3. Bg2 {[%clk 0:02:47]}  Bg7 {[%clk 0:02:54]} 4. O-O {[%clk 0:02:48]}  O-O {[%clk 0:02:53]} 5. Nc3 {[%clk 0:02:49]}  d5 {[%clk 0:02:51]} 6. d3 {[%clk 0:02:47]}  c6 {[%clk 0:02:43]} 7. e4 {[%clk 0:02:47]}  dxe4 {[%clk 0:02:36]} 8. dxe4 {[%clk 0:02:46]}  Qxd1 {[%clk 0:02:36]} 9. Rxd1 {[%clk 0:02:46]}  Nfd7 {[%clk 0:02:31]} 10. a4 {[%clk 0:02:45]}  a5 {[%clk 0:02:30]} 11. Be3 {[%clk 0:02:44]}  Na6 {[%clk 0:02:26]} 12. Nd2 {[%clk 0:02:35]}  Nb4 {[%clk 0:02:06]} 13. Rdc1 {[%clk 0:02:31]}  b6 {[%clk 0:01:55]} 14. Nc4 {[%clk 0:02:28]}  Rb8 {[%clk 0:01:55]} 15. Bh3 {[%clk 0:02:23]}  Ne5 {[%clk 0:01:45]} 16. Nxb6 {[%clk 0:02:14]}  Bxh3 {[%clk 0:01:43]} 0-1


[Site "https://www.chess.com"]

[Event "Titled Tuesday Blitz February 28 Late 2023"]
[White "Klose, Eli"]
[Black "Abdrlauf, Elham"]
[WhiteFideId "16242955"]
[BlackFideId "1533533"]
[WhiteElo "2591"]
[BlackElo "2476"]
[Result "0-1"]
[Round "02"]
[TimeControl "180+2"]
[Date "2023.02.28"]
[WhiteClock "0:00:08"]
[BlackClock "0:00:46"]

1. e4 {[%clk 0:02:58]}  c6 {[%clk 0:02:59]} 2. Nc3 {[%clk 0:02:55]}  d5 {[%clk 0:03:00]} 3. g3 {[%clk 0:02:56]}  dxe4 {[%clk 0:03:01]} 4. Nxe4 {[%clk 0:02:56]}  Nf6 {[%clk 0:03:01]} 5. Bg2 {[%clk 0:02:55]}  Nxe4 {[%clk 0:03:02]} 6. Bxe4 {[%clk 0:02:55]}  Nd7 {[%clk 0:03:02]} 7. Ne2 {[%clk 0:02:55]}  Nf6 {[%clk 0:03:03]} 8. Bg2 {[%clk 0:02:55]}  e5 {[%clk 0:03:01]} 9. d4 {[%clk 0:02:52]}  exd4 {[%clk 0:02:57]} 10. Qxd4 {[%clk 0:02:52]}  Qxd4 {[%clk 0:02:55]} 11. Nxd4 {[%clk 0:02:53]}  Bc5 {[%clk 0:02:54]} 12. Nb3 {[%clk 0:02:53]}  Be7 {[%clk 0:02:54]} 13. O-O {[%clk 0:02:51]}  O-O {[%clk 0:02:54]} 14. Bf4 {[%clk 0:02:46]}  Be6 {[%clk 0:02:52]} 15. Rfe1 {[%clk 0:02:43]}  Rfe8 {[%clk 0:02:50]} 16. c3 {[%clk 0:02:41]}  Bd5 {[%clk 0:02:50]} 17. Na5 {[%clk 0:02:34]}  Bxg2 {[%clk 0:02:29]} 18. Kxg2 {[%clk 0:02:33]}  Nd5 {[%clk 0:02:29]} 19. Nxb7 {[%clk 0:01:52]}  Nxf4+ {[%clk 0:02:27]} 20. gxf4 {[%clk 0:01:53]}  g6 {[%clk 0:02:05]} 21. Na5 {[%clk 0:01:52]}  c5 {[%clk 0:01:57]} 22. Nc4 {[%clk 0:01:32]}  Kf8 {[%clk 0:01:50]} 23. Rad1 {[%clk 0:01:24]}  Red8 {[%clk 0:01:48]} 24. Kf3 {[%clk 0:01:23]}  Rab8 {[%clk 0:01:46]} 25. Rxd8+ {[%clk 0:00:56]}  Bxd8 {[%clk 0:01:47]} 26. Rd1 {[%clk 0:00:54]}  Ke8 {[%clk 0:01:36]} 27. Rd5 {[%clk 0:00:54]}  Be7 {[%clk 0:01:35]} 28. f5 {[%clk 0:00:54]}  Rc8 {[%clk 0:01:29]} 29. fxg6 {[%clk 0:00:53]}  hxg6 {[%clk 0:01:30]} 30. Nd6+ {[%clk 0:00:46]}  Bxd6 {[%clk 0:01:29]} 31. Rxd6 {[%clk 0:00:47]}  c4 {[%clk 0:01:21]} 32. Ke4 {[%clk 0:00:39]}  Rb8 {[%clk 0:01:20]} 33. Rd2 {[%clk 0:00:39]}  Ke7 {[%clk 0:01:18]} 34. Re2 {[%clk 0:00:38]}  Rd8 {[%clk 0:01:18]} 35. b3 {[%clk 0:00:26]}  f5+ {[%clk 0:01:06]} 36. Ke5 {[%clk 0:00:18]}  Kf7 {[%clk 0:01:07]} 37. Rc2 {[%clk 0:00:17]}  Rc8 {[%clk 0:00:52]} 38. Kd5 {[%clk 0:00:16]}  cxb3 {[%clk 0:00:53]} 39. axb3 {[%clk 0:00:17]}  Ke7 {[%clk 0:00:53]} 40. c4 {[%clk 0:00:17]}  Rb8 {[%clk 0:00:52]} 41. Rc3 {[%clk 0:00:16]}  Kd7 {[%clk 0:00:52]} 42. c5 {[%clk 0:00:16]}  Rh8 {[%clk 0:00:46]} 43. h3 {[%clk 0:00:16]}  Rh5 {[%clk 0:00:44]} 44. Rg3 {[%clk 0:00:15]}  f4+ {[%clk 0:00:45]} 45. Ke4 {[%clk 0:00:08]}  fxg3 {[%clk 0:00:46]} 0-1


[Site "https://www.chess.com"]

[Event "Titled Tuesday Blitz February 28 Late 2023"]
[White "Svane, Frederik"]
[Black "Manelyuk, Daniil"]
[WhiteFideId "12923044"]
[BlackFideId "44173920"]
[WhiteElo "2502"]
[BlackElo "2259"]
[Result "1-0"]
[Round "02"]
[TimeControl "180+2"]
[Date "2023.02.28"]
[WhiteClock "0:01:01"]
[BlackClock "0:00:06"]

1. c4 {[%clk 0:03:00]}  c5 {[%clk 0:02:53]} 2. g3 {[%clk 0:03:00]}  Nc6 {[%clk 0:02:53]} 3. Bg2 {[%clk 0:03:01]}  g6 {[%clk 0:02:54]} 4. d3 {[%clk 0:03:00]}  Bg7 {[%clk 0:02:54]} 5. Nc3 {[%clk 0:03:00]}  e5 {[%clk 0:02:54]} 6. e3 {[%clk 0:02:58]}  Nge7 {[%clk 0:02:54]} 7. Nge2 {[%clk 0:02:58]}  O-O {[%clk 0:02:55]} 8. O-O {[%clk 0:02:58]}  d6 {[%clk 0:02:55]} 9. a3 {[%clk 0:02:58]}  a5 {[%clk 0:02:54]} 10. Rb1 {[%clk 0:02:47]}  Be6 {[%clk 0:02:53]} 11. Nd5 {[%clk 0:02:48]}  Bxd5 {[%clk 0:02:45]} 12. cxd5 {[%clk 0:02:44]}  Nb8 {[%clk 0:02:45]} 13. Nc3 {[%clk 0:02:43]}  Nd7 {[%clk 0:02:42]} 14. b4 {[%clk 0:02:39]}  cxb4 {[%clk 0:02:08]} 15. axb4 {[%clk 0:02:40]}  axb4 {[%clk 0:02:09]} 16. Rxb4 {[%clk 0:02:39]}  Rc8 {[%clk 0:02:08]} 17. Bd2 {[%clk 0:02:37]}  Nc5 {[%clk 0:02:04]} 18. d4 {[%clk 0:02:31]}  exd4 {[%clk 0:02:02]} 19. exd4 {[%clk 0:02:32]}  Na6 {[%clk 0:01:23]} 20. Rxb7 {[%clk 0:02:31]}  Nf5 {[%clk 0:01:24]} 21. Bh3 {[%clk 0:02:23]}  Qf6 {[%clk 0:01:13]} 22. Ne4 {[%clk 0:02:15]}  Qxd4 {[%clk 0:01:07]} 23. Bxf5 {[%clk 0:02:15]}  gxf5 {[%clk 0:01:07]} 24. Nxd6 {[%clk 0:02:16]}  Qxd5 {[%clk 0:01:06]} 25. Bg5 {[%clk 0:02:09]}  Rc5 {[%clk 0:00:58]} 26. Be7 {[%clk 0:02:03]}  Rb8 {[%clk 0:00:55]} 27. Rxb8+ {[%clk 0:01:51]}  Nxb8 {[%clk 0:00:56]} 28. Nxf7 {[%clk 0:01:46]}  Qxd1 {[%clk 0:00:30]} 29. Rxd1 {[%clk 0:01:47]}  Rc7 {[%clk 0:00:30]} 30. Ng5 {[%clk 0:01:47]}  Rxe7 {[%clk 0:00:17]} 31. Rd8+ {[%clk 0:01:47]}  Bf8 {[%clk 0:00:17]} 32. Rxb8 {[%clk 0:01:47]}  f4 {[%clk 0:00:18]} 33. gxf4 {[%clk 0:01:43]}  h6 {[%clk 0:00:18]} 34. Nf3 {[%clk 0:01:36]}  Rf7 {[%clk 0:00:06]} 35. Ne5 {[%clk 0:01:36]}  Rxf4 {[%clk 0:00:06]} 36. Nd7 {[%clk 0:01:34]}  Kg7 {[%clk 0:00:06]} 37. Rxf8 {[%clk 0:01:34]}  Rxf8 {[%clk 0:00:07]} 38. Nxf8 {[%clk 0:01:35]}  Kxf8 {[%clk 0:00:08]} 39. Kg2 {[%clk 0:01:36]}  Kf7 {[%clk 0:00:09]} 40. Kg3 {[%clk 0:01:37]}  Kg6 {[%clk 0:00:10]} 41. Kg4 {[%clk 0:01:37]}  Kf6 {[%clk 0:00:09]} 42. h4 {[%clk 0:01:24]}  Kg6 {[%clk 0:00:09]} 43. Kf4 {[%clk 0:01:20]}  Kh5 {[%clk 0:00:08]} 44. Ke5 {[%clk 0:01:03]}  Kg6 {[%clk 0:00:09]} 45. Ke6 {[%clk 0:00:58]}  Kg7 {[%clk 0:00:04]} 46. f4 {[%clk 0:00:58]}  Kg6 {[%clk 0:00:03]} 47. f5+ {[%clk 0:00:58]}  Kg7 {[%clk 0:00:03]} 48. Ke7 {[%clk 0:00:58]}  h5 {[%clk 0:00:03]} 49. f6+ {[%clk 0:00:59]}  Kg8 {[%clk 0:00:03]} 50. f7+ {[%clk 0:01:00]}  Kh7 {[%clk 0:00:04]} 51. f8=Q {[%clk 0:01:00]}  Kg6 {[%clk 0:00:04]} 52. Qf6+ {[%clk 0:01:00]}  Kh7 {[%clk 0:00:05]} 53. Qg5 {[%clk 0:01:00]}  Kh8 {[%clk 0:00:05]} 54. Kf7 {[%clk 0:01:01]}  Kh7 {[%clk 0:00:06]} 55. Qg7# {[%clk 0:01:01]} 1-0


[Site "https://www.chess.com"]